fUST/lending_fUST_20250817
["ID","MTS","AMOUNT","RATE_DAILY","PERIOD"]
[379883405,1755431448259,-160.0,0.00020073,2]
[379883407,1755431448268,-160.0,0.00020073,2]
[379883409,1755431448278,-528.48506731,0.00020073,2]
[379883411,1755431448287,-215.71995163,0.00020073,2]
[379883412,1755431448298,-12682.46447135,0.00020073,2]
[379883414,1755431448307,-500.0,0.00020082,2]
[379883416,1755431448318,-1003.87076081,0.00020121,2]
[379883418,1755431448328,-1000.0,0.00020121,2]
[379883420,1755431448338,-1000.0,0.00020121,2]
[379883426,1755431448391,-500.0,0.00020121,2]
[379883427,1755431448405,-1000.0,0.00020121,2]
[379883429,1755431448419,-503.04797693,0.00020121,2]
[379883431,1755431448428,-1000.0,0.00020121,2]
[379883433,1755431448438,-1000.0,0.00020121,2]
[379883435,1755431448449,-500.0,0.00020121,2]
[379883437,1755431448460,-500.0,0.00020121,2]
[379883439,1755431448492,-500.93563452,0.00020121,2]
[379883441,1755431448504,-1068.59991758,0.00020121,2]
[379883442,1755431448514,-441.6,0.00020142,2]
[379883443,1755431448524,-480.0,0.00020147,2]
[379883444,1755431448533,-940.84,0.00020147,2]
[379883445,1755431448543,-724.58,0.00020147,2]
[379883446,1755431448552,-480.0,0.00020147,2]
[379883447,1755431448562,-480.0,0.00020147,2]
[379883448,1755431448571,-6892.33,0.00020147,2]
[379883449,1755431448581,-1970.3,0.00020147,2]
[379883450,1755431448590,-860.81,0.00020147,2]
[379883451,1755431448600,-480.0,0.00020147,2]
[379883452,1755431448609,-633.39,0.00020147,2]
[379883453,1755431448619,-1707.02,0.00020147,2]
[379883454,1755431448629,-480.0,0.00020148,2]
[379883455,1755431448638,-480.0,0.00020148,2]
[379883456,1755431448649,-480.0,0.00020148,2]
[379883457,1755431448658,-632.8,0.00020148,2]
[379883458,1755431448668,-460.0,0.00020148,2]
[379883459,1755431448678,-480.0,0.00020148,2]
[379883460,1755431448688,-480.0,0.00020148,2]
[379883461,1755431448697,-480.0,0.00020148,2]
[379883462,1755431448707,-480.0,0.00020148,2]
[379883463,1755431448717,-480.0,0.00020148,2]
[379883464,1755431448726,-460.0,0.00020148,2]
[379883465,1755431448736,-480.0,0.00020148,2]
[379883466,1755431448746,-480.0,0.00020148,2]
[379883467,1755431448756,-480.0,0.00020148,2]
[379883468,1755431448765,-480.0,0.00020148,2]
[379883470,1755431448775,-503.26,0.00020148,2]
[379883472,1755431448785,-480.0,0.00020148,2]
[379883474,1755431448795,-480.0,0.00020148,2]
[379883476,1755431448806,-460.0,0.00020148,2]
[379883478,1755431448815,-1077.88,0.00020148,2]
[379883480,1755431448825,-480.0,0.00020148,2]
[379883482,1755431448835,-480.0,0.00020148,2]
[379883484,1755431448845,-593.43,0.00020148,2]
[379883486,1755431448856,-480.0,0.00020148,2]
[379883488,1755431448865,-795.7,0.00020148,2]
[379883490,1755431448875,-480.0,0.00020148,2]
[379883492,1755431448884,-480.0,0.00020148,2]
[379883494,1755431448894,-480.0,0.00020148,2]
[379883496,1755431448903,-480.0,0.00020148,2]
[379883498,1755431448913,-480.0,0.00020148,2]
[379883500,1755431448922,-480.0,0.00020148,2]
[379883502,1755431448932,-603.59,0.00020148,2]
[379883504,1755431448941,-480.0,0.00020148,2]
[379883505,1755431448951,-481.91368108,0.00020148,2]
[379883507,1755431448960,-480.0,0.00020148,2]
[379883509,1755431448970,-480.0,0.00020148,2]
[379883511,1755431448989,-480.0,0.00020148,2]
[379883513,1755431449004,-480.0,0.00020148,2]
[379883515,1755431449018,-480.0,0.00020148,2]
[379883517,1755431449028,-480.0,0.00020148,2]
[379883519,1755431449038,-480.0,0.00020148,2]
[379883521,1755431449049,-568.4641794,0.00020148,2]
[379883524,1755431449062,-480.0,0.00020148,2]
[379883525,1755431449072,-460.0,0.00020148,2]
[379883528,1755431449082,-480.0,0.00020148,2]
[379883529,1755431449093,-460.0,0.00020148,2]
[379883532,1755431449103,-480.0,0.00020148,2]
[379883534,1755431449113,-354.93110207,0.00020148,2]
[379883536,1755431449124,-340.0,0.00020148,2]
[379883537,1755431449134,-9339.51,0.00020148,2]
[379883540,1755431449145,-480.0,0.00020148,2]
[379883542,1755431449155,-480.0,0.00020148,2]
[379883543,1755431449165,-480.0,0.00020148,2]
[379883546,1755431449175,-3211.14853113,0.00020153,2]
[379883547,1755431449185,-2853.76989708,0.00020154,2]
[379883550,1755431449195,-480.0,0.0002016,2]
[379883552,1755431449205,-480.0,0.0002016,2]
[379883553,1755431449215,-480.0,0.0002016,2]
[379883556,1755431449225,-480.0,0.0002016,2]
[379883557,1755431449237,-480.0,0.0002016,2]
[379883560,1755431449247,-480.0,0.0002016,2]
[379883562,1755431449257,-662.9,0.0002016,2]
[379883564,1755431449267,-480.0,0.0002016,2]
[379883566,1755431449279,-480.0,0.0002016,2]
[379883568,1755431449290,-480.0,0.0002016,2]
[379883570,1755431449300,-480.0,0.0002016,2]
[379883571,1755431449310,-5084.13,0.0002016,2]
[379883573,1755431449323,-480.0,0.0002016,2]
[379883575,1755431449332,-460.0,0.0002016,2]
[379883578,1755431449343,-1169.93,0.0002016,2]
[379883580,1755431449352,-480.0,0.0002016,2]
[379883582,1755431449362,-480.0,0.0002016,2]
[379883584,1755431449375,-480.0,0.0002016,2]
[379883585,1755431449384,-921.6,0.0002016,2]
[379883587,1755431449394,-480.0,0.0002016,2]
[379883590,1755431449404,-480.0,0.0002016,2]
[379883592,1755431449414,-480.0,0.00020161,2]
[379883593,1755431449424,-283.29363413,0.00020169,2]
[379883596,1755431449434,-480.0,0.00020169,2]
[379883598,1755431449444,-480.0,0.00020169,2]
[379883600,1755431449453,-480.0,0.00020169,2]
[379883602,1755431449464,-480.0,0.00020169,2]
[379883604,1755431449474,-524.9,0.00020169,2]
[379883606,1755431449484,-649.06,0.00020169,2]
[379883608,1755431449493,-583.91,0.00020169,2]
[379883610,1755431449503,-480.0,0.00020169,2]
[379883612,1755431449513,-1934.34,0.00020169,2]
[379883614,1755431449523,-151.14904501,0.00020169,2]
[379883616,1755431449532,-442.71743378,0.00020169,2]
[379883619,1755431449553,-480.0,0.00020169,2]
[379883621,1755431449564,-2362.3,0.00020173,2]
[379883623,1755431449575,-480.0,0.00020173,2]
[379883625,1755431449585,-151.186683,0.00020173,2]
[379883627,1755431449596,-794.333361,0.00020187,2]
[379883629,1755431449606,-151.0,0.000202,4]
[379883630,1755431449617,-435.42,0.00020213,2]
[379883632,1755431449627,-167.27283284,0.00020219,2]
[379883634,1755431449638,-156.38452681,0.00020219,2]
[379883636,1755431449648,-480.0,0.00020232,2]
[379883638,1755431449659,-5000.0,0.00020261,2]
[379883640,1755431449669,-18577.78210181,0.00020292,2]
[379883642,1755431449680,-441.6,0.00020297,2]
[379883644,1755431449690,-151.0,0.000203,4]
[379883646,1755431449700,-480.0,0.00020332,2]
[379883648,1755431449710,-1209.46,0.00020332,2]
[379883650,1755431449721,-516.58110386,0.00020332,2]
[379883652,1755431449732,-480.0,0.00020332,2]
[379883654,1755431449742,-480.0,0.00020332,2]
[379883656,1755431449753,-480.0,0.00020332,2]
[379883658,1755431449763,-480.0,0.00020332,2]
[379883660,1755431449773,-604.72,0.00020332,2]
[379883662,1755431449783,-480.0,0.00020332,2]
[379883664,1755431449793,-1658.55,0.00020332,2]
[379883666,1755431449803,-2406.12,0.00020332,2]
[379883668,1755431449813,-480.0,0.00020332,2]
[379883670,1755431449823,-480.0,0.00020332,2]
[379883672,1755431449834,-575.54,0.00020332,2]
[379883674,1755431449844,-1605.16,0.00020332,2]
[379883676,1755431449854,-460.0,0.00020332,2]
[379883678,1755431449865,-1584.95,0.00020332,2]
[379883680,1755431449875,-462.3860387,0.00020332,2]
[379883682,1755431449886,-562.34,0.00020332,2]
[379883684,1755431449896,-500.0,0.00020332,2]
[379883686,1755431449906,-570.77,0.00020333,2]
[379883688,1755431449917,-1015.99,0.00020333,2]
[379883690,1755431449928,-489.24,0.00020333,2]
[379883693,1755431449938,-516.26692774,0.00020333,2]
[379883695,1755431449948,-508.19,0.00020333,2]
[379883697,1755431449958,-480.0,0.00020333,2]
[379883699,1755431449967,-480.0,0.00020333,2]
[379883700,1755431449980,-545.8,0.00020333,2]
[379883702,1755431449990,-460.0,0.00020333,2]
[379883704,1755431450001,-495.16035688,0.00020333,2]
[379883706,1755431450012,-480.0,0.00020333,2]
[379883708,1755431450023,-831.87,0.00020333,2]
[379883710,1755431450032,-440.0,0.00020333,2]
[379883712,1755431450043,-480.0,0.00020333,2]
[379883714,1755431450056,-480.0,0.00020333,2]
[379883716,1755431450067,-826.56,0.00020333,2]
[379883718,1755431450076,-480.0,0.00020333,2]
[379883720,1755431450088,-480.0,0.00020333,2]
[379883723,1755431450100,-480.0,0.00020333,2]
[379883725,1755431450110,-599.29,0.00020333,2]
[379883727,1755431450121,-480.0,0.00020333,2]
[379883728,1755431450132,-480.0,0.00020333,2]
[379883730,1755431450144,-2876.96,0.00020333,2]
[379883733,1755431450155,-724.27,0.00020333,2]
[379883734,1755431450165,-480.0,0.00020333,2]
[379883737,1755431450176,-480.0,0.00020333,2]
[379883739,1755431450187,-480.0,0.00020333,2]
[379883740,1755431450197,-480.0,0.00020333,2]
[379883742,1755431450207,-480.0,0.00020333,2]
[379883744,1755431450218,-480.0,0.00020333,2]
[379883746,1755431450228,-151.0,0.00020333,2]
[379883748,1755431450238,-480.0,0.00020333,2]
[379883750,1755431450248,-616.52,0.00020333,2]
[379883752,1755431450259,-4039.42,0.00020333,2]
[379883754,1755431450269,-480.0,0.00020333,2]
[379883756,1755431450279,-480.0,0.00020333,2]
[379883758,1755431450290,-480.0,0.00020333,2]
[379883760,1755431450300,-824.71,0.00020333,2]
[379883762,1755431450310,-464.06193495,0.00020333,2]
[379883764,1755431450321,-480.0,0.00020334,2]
[379883766,1755431450331,-941.24,0.00020334,2]
[379883769,1755431450342,-151.0,0.00020343,2]
[379883771,1755431450352,-151.0,0.00020343,2]
[379883773,1755431450363,-167.27283284,0.00020384,2]
[379883774,1755431450373,-3211.14853113,0.000204,2]
[379883776,1755431450382,-151.0,0.00020421,2]
[379883778,1755431450392,-480.0,0.00020421,2]
[379883780,1755431450402,-940.84,0.00020421,2]
[379883782,1755431450413,-724.58,0.00020421,2]
[379883785,1755431450423,-480.0,0.00020421,2]
[379883787,1755431450433,-480.0,0.00020421,2]
[379883789,1755431450444,-6892.33,0.00020421,2]
[379883791,1755431450454,-1970.3,0.00020421,2]
[379883793,1755431450465,-860.81,0.00020421,2]
[379883795,1755431450476,-480.0,0.00020421,2]
[379883797,1755431450486,-848.882309,0.00020421,2]
[379883799,1755431450496,-633.39,0.00020421,2]
[379883801,1755431450506,-848.882309,0.00020421,2]
[379883803,1755431450515,-1707.02,0.00020421,2]
[379883805,1755431450526,-480.0,0.00020422,2]
[379883806,1755431450535,-483.47601284,0.00020422,2]
[379883808,1755431450545,-480.0,0.00020422,2]
[379883810,1755431450555,-632.8,0.00020422,2]
[379883812,1755431450566,-460.0,0.00020422,2]
[379883815,1755431450576,-480.0,0.00020422,2]
[379883817,1755431450586,-460.0,0.00020422,2]
[379883819,1755431450596,-480.0,0.00020422,2]
[379883820,1755431450606,-480.0,0.00020422,2]
[379883822,1755431450616,-480.0,0.00020422,2]
[379883825,1755431450626,-480.0,0.00020422,2]
[379883826,1755431450637,-480.0,0.00020422,2]
[379883828,1755431450647,-480.0,0.00020422,2]
[379883830,1755431450657,-503.26,0.00020422,2]
[379883832,1755431450667,-480.0,0.00020422,2]
[379883834,1755431450676,-480.0,0.00020422,2]
[379883836,1755431450686,-1077.88,0.00020422,2]
[379883839,1755431450697,-480.0,0.00020422,2]
[379883841,1755431450707,-503.13590505,0.00020422,2]
[379883843,1755431450717,-593.43,0.00020422,2]
[379883845,1755431450727,-480.0,0.00020422,2]
[379883847,1755431450736,-795.7,0.00020422,2]
[379883849,1755431450747,-480.0,0.00020422,2]
[379883851,1755431450756,-480.0,0.00020422,2]
[379883852,1755431450766,-480.0,0.00020422,2]
[379883855,1755431450776,-480.0,0.00020422,2]
[379883857,1755431450786,-480.0,0.00020422,2]
[379883858,1755431450796,-603.59,0.00020422,2]
[379883860,1755431450806,-480.0,0.00020422,2]
[379883862,1755431450816,-480.0,0.00020422,2]
[379883864,1755431450825,-480.0,0.00020422,2]
[379883866,1755431450834,-480.0,0.00020422,2]
[379883868,1755431450844,-480.0,0.00020422,2]
[379883870,1755431450853,-480.0,0.00020422,2]
[379883872,1755431450863,-480.0,0.00020422,2]
[379883874,1755431450872,-480.0,0.00020422,2]
[379883876,1755431450881,-480.0,0.00020422,2]
[379883878,1755431450891,-480.0,0.00020422,2]
[379883880,1755431450900,-480.0,0.00020422,2]
[379883883,1755431450912,-9339.51,0.00020422,2]
[379883884,1755431450921,-480.0,0.00020422,2]
[379883887,1755431450931,-480.0,0.00020422,2]
[379883888,1755431450941,-480.0,0.00020422,2]
[379883890,1755431450950,-392.6072518,0.00020434,2]
[379883892,1755431450960,-427.2468826,0.00020434,2]
[379883894,1755431450970,-480.0,0.00020434,2]
[379883896,1755431450984,-480.0,0.00020434,2]
[379883899,1755431450995,-480.0,0.00020434,2]
[379883901,1755431451004,-662.9,0.00020434,2]
[379883903,1755431451014,-480.0,0.00020434,2]
[379883905,1755431451024,-480.0,0.00020434,2]
[379883907,1755431451034,-480.0,0.00020434,2]
[379883909,1755431451043,-5084.13,0.00020434,2]
[379883911,1755431451055,-171.66553439,0.00020434,2]
[379883913,1755431451064,-1169.93,0.00020434,2]
[379883915,1755431451074,-480.0,0.00020434,2]
[379883916,1755431451084,-480.0,0.00020434,2]
[379883918,1755431451093,-921.6,0.00020434,2]
[379883920,1755431451103,-480.0,0.00020434,2]
[379883922,1755431451112,-480.0,0.00020434,2]
[379883924,1755431451122,-408.01641206,0.00020443,2]
[379883926,1755431451132,-151.0,0.00020443,2]
[379883928,1755431451142,-480.0,0.00020443,2]
[379883930,1755431451152,-480.0,0.00020443,2]
[379883932,1755431451162,-649.06,0.00020443,2]
[379883934,1755431451172,-583.91,0.00020443,2]
[379883936,1755431451182,-480.0,0.00020443,2]
[379883938,1755431451192,-1934.34,0.00020443,2]
[379883940,1755431451201,-480.0,0.00020443,2]
[379883942,1755431451211,-183.766946,0.00020447,2]
[379883943,1755431451221,-183.766946,0.00020447,2]
[379883944,1755431451231,-2362.3,0.00020447,2]
[379883945,1755431451241,-480.0,0.00020447,2]
[379883946,1755431451250,-228.43261,0.00020447,2]
[379883947,1755431451260,-228.43261,0.00020447,2]
[379883948,1755431451271,-151.0,0.00020447,2]
[379883956,1755431451402,-441.6,0.00020452,2]
[379883958,1755431451411,-500.0,0.00020473,2]
[379883960,1755431451422,-500.0,0.00020473,2]
[379883962,1755431451432,-500.0,0.00020473,2]
[379883964,1755431451441,-500.0,0.00020473,2]
[379883966,1755431451450,-500.0,0.00020473,2]
[379883968,1755431451459,-500.0,0.00020473,2]
[379883970,1755431451469,-500.0,0.00020473,2]
[379883972,1755431451478,-500.0,0.00020473,2]
[379883974,1755431451487,-500.0,0.00020473,2]
[379883976,1755431451496,-605.88919209,0.00020473,2]
[379883978,1755431451506,-636.38179894,0.00020473,2]
[379883980,1755431451515,-500.0,0.00020473,2]
[379883982,1755431451524,-500.0,0.00020473,2]
[379883984,1755431451533,-500.0,0.00020473,2]
[379883986,1755431451542,-558.58990144,0.00020473,2]
[379883989,1755431451552,-650.0,0.00020473,2]
[379883990,1755431451562,-500.0,0.00020473,2]
[379883992,1755431451571,-500.0,0.00020473,2]
[379883994,1755431451580,-500.0,0.00020473,2]
[379883996,1755431451589,-500.0,0.00020473,2]
[379883998,1755431451598,-506.10857676,0.00020473,2]
[379884000,1755431451607,-500.0,0.00020473,2]
[379884002,1755431451617,-500.0,0.00020473,2]
[379884004,1755431451626,-500.0,0.00020473,2]
[379884006,1755431451635,-500.0,0.00020473,2]
[379884008,1755431451644,-500.0,0.00020473,2]
[379884010,1755431451653,-158.22785623,0.00020473,2]
[379884012,1755431451663,-501.98214509,0.00020473,2]
[379884014,1755431451674,-500.0,0.00020473,2]
[379884016,1755431451683,-321.39518952,0.00020473,2]
[379884019,1755431451694,-262.81543971,0.00020473,2]
[379884020,1755431451703,-500.0,0.00020473,2]
[379884022,1755431451713,-501.71348276,0.00020473,2]
[379884024,1755431451722,-296.0304311,0.00020473,2]
[379884026,1755431451732,-500.5836322,0.00020473,2]
[379884028,1755431451741,-161.87028227,0.00020473,2]
[379884030,1755431451750,-500.0,0.00020473,2]
[379884032,1755431451759,-500.40863511,0.00020473,2]
[379884035,1755431451769,-584.71166628,0.00020473,2]
[379884037,1755431451779,-258.67006152,0.00020473,2]
[379884039,1755431451788,-500.0,0.00020473,2]
[379884041,1755431451797,-500.0,0.00020473,2]
[379884043,1755431451806,-500.0,0.00020473,2]
[379884045,1755431451815,-159.60508025,0.00020473,2]
[379884046,1755431451825,-500.0,0.00020473,2]
[379884049,1755431451835,-158.61775077,0.00020473,2]
[379884051,1755431451844,-500.0,0.00020473,2]
[379884053,1755431451853,-500.0,0.00020473,2]
[379884055,1755431451863,-188.65528262,0.00020473,2]
[379884057,1755431451873,-415.34722731,0.00020473,2]
[379884059,1755431451882,-158.62313276,0.00020473,2]
[379884061,1755431451891,-501.33102151,0.00020473,2]
[379884062,1755431451900,-158.61449762,0.00020473,2]
[379884064,1755431451909,-158.60123121,0.00020473,2]
[379884066,1755431451918,-181.25139885,0.00020473,2]
[379884068,1755431451927,-160.20015304,0.00020473,2]
[379884070,1755431451936,-248.73521794,0.00020473,2]
[379884072,1755431451946,-400.51360892,0.00020473,2]
[379884074,1755431451955,-258.63436774,0.00020473,2]
[379884076,1755431451964,-340.42651408,0.00020473,2]
[379884078,1755431451974,-340.84167788,0.00020473,2]
[379884080,1755431451985,-158.20000211,0.00020473,2]
[379884082,1755431451995,-500.0,0.00020473,2]
[379884084,1755431452004,-160.6223693,0.00020473,2]
[379884086,1755431452014,-500.0,0.00020473,2]
[379884088,1755431452025,-500.0,0.00020473,2]
[379884090,1755431452034,-500.0,0.00020473,2]
[379884092,1755431452044,-500.0,0.00020473,2]
[379884094,1755431452054,-160.62292884,0.00020473,2]
[379884096,1755431452064,-445.5478031,0.00020473,2]
[379884098,1755431452073,-500.0,0.00020473,2]
[379884101,1755431452084,-500.0,0.00020473,2]
[379884103,1755431452094,-500.0,0.00020473,2]
[379884105,1755431452104,-500.0,0.00020473,2]
[379884107,1755431452114,-500.99412831,0.00020473,2]
[379884109,1755431452123,-516.42439368,0.00020473,2]
[379884111,1755431452133,-500.0,0.00020473,2]
[379884112,1755431452142,-500.0,0.00020473,2]
[379884114,1755431452151,-500.0,0.00020473,2]
[379884116,1755431452160,-168.89872184,0.00020473,2]
[379884118,1755431452169,-500.0,0.00020473,2]
[379884120,1755431452178,-632.88952301,0.00020473,2]
[379884122,1755431452188,-500.0,0.00020473,2]
[379884124,1755431452197,-500.0,0.00020473,2]
[379884126,1755431452206,-500.22350934,0.00020473,2]
[379884128,1755431452215,-500.0,0.00020473,2]
[379884130,1755431452225,-500.0,0.00020473,2]
[379884132,1755431452234,-500.0,0.00020473,2]
[379884134,1755431452243,-500.0,0.00020473,2]
[379884136,1755431452253,-500.0,0.00020473,2]
[379884138,1755431452262,-500.0,0.00020473,2]
[379884140,1755431452271,-521.8552445,0.00020473,2]
[379884142,1755431452281,-500.0,0.00020473,2]
[379884145,1755431452291,-501.74670769,0.00020473,2]
[379884147,1755431452301,-500.0,0.00020473,2]
[379884148,1755431452310,-500.0,0.00020473,2]
[379884150,1755431452319,-156.38452681,0.00020493,2]
[379884152,1755431452329,-156.3845268,0.00020493,2]
[379884154,1755431452339,-156.38452681,0.00020493,2]
[379884156,1755431452348,-209983.43,0.000205,2]
[379884158,1755431452358,-42149.76,0.000205,2]
[379884160,1755431452368,-151.0,0.000205,2]
[379884163,1755431452377,-151.0,0.000205,2]
[379884165,1755431452387,-151.0,0.000205,3]
[379884167,1755431452396,-246.388764,0.000205,2]
[379884169,1755431452405,-246.388764,0.000205,2]
[379884171,1755431452416,-151.564141,0.000205,2]
[379884173,1755431452426,-151.0,0.000205,2]
[379884175,1755431452435,-151.0,0.000205,2]
[379884177,1755431452444,-151.0,0.000205,3]
[379884179,1755431452453,-151.0,0.000205,2]
[379884180,1755431452462,-151.0,0.000205,2]
[379884182,1755431452471,-151.0,0.000205,2]
[379884184,1755431452480,-183.766946,0.000205,2]
[379884186,1755431452489,-183.766946,0.000205,2]
[379884188,1755431452498,-245.467757,0.000205,2]
[379884190,1755431452509,-245.467757,0.000205,2]
[379884193,1755431452519,-151.0,0.000205,2]
[379884195,1755431452531,-228.43261,0.000205,2]
[379884197,1755431452541,-228.43261,0.000205,2]
[379884199,1755431452551,-151.0,0.000205,2]
[379884201,1755431452560,-151.0,0.000205,2]
[379884203,1755431452569,-151.0,0.000205,2]
[379884205,1755431452578,-151.792072,0.000205,2]
[379884207,1755431452587,-848.882309,0.000205,2]
[379884209,1755431452596,-848.882309,0.000205,2]
[379884211,1755431452605,-158.985551,0.00020501,3]
[379884213,1755431452614,-480.0,0.00020506,2]
[379884215,1755431452623,-175.12953986,0.00020508,2]
[379884217,1755431452632,-160.51756169,0.00020514,2]
[379884219,1755431452641,-167.27283284,0.00020521,2]
[379884221,1755431452650,-500.0,0.00020547,2]
[379884223,1755431452661,-160.0,0.00020554,2]
[379884225,1755431452671,-151.0,0.000206,4]
[379884227,1755431452681,-151.0,0.000206,3]
[379884229,1755431452691,-345.40585539,0.00020606,2]
[379884231,1755431452701,-1209.46,0.00020606,2]
[379884232,1755431452712,-480.0,0.00020606,2]
[379884235,1755431452722,-480.0,0.00020606,2]
[379884237,1755431452731,-480.0,0.00020606,2]
[379884239,1755431452740,-480.0,0.00020606,2]
[379884241,1755431452750,-604.72,0.00020606,2]
[379884243,1755431452759,-1658.55,0.00020606,2]
[379884245,1755431452768,-2406.12,0.00020606,2]
[379884247,1755431452777,-480.0,0.00020606,2]
[379884249,1755431452786,-480.0,0.00020606,2]
[379884251,1755431452802,-575.54,0.00020606,2]
[379884253,1755431452811,-1605.16,0.00020606,2]
[379884255,1755431452820,-1584.95,0.00020606,2]
[379884257,1755431452829,-562.34,0.00020606,2]
[379884259,1755431452838,-500.0,0.00020606,2]
[379884261,1755431452847,-150000.0,0.00020606,2]
[379884263,1755431452856,-14137.42098442,0.00020606,2]
[379884265,1755431452865,-570.77,0.00020607,2]
[379884267,1755431452875,-1015.99,0.00020607,2]
[379884269,1755431452884,-489.24,0.00020607,2]
[379884271,1755431452895,-508.19,0.00020607,2]
[379884273,1755431452904,-480.0,0.00020607,2]
[379884275,1755431452913,-441.6,0.00020607,2]
[379884277,1755431452922,-524.19849949,0.00020607,2]
[379884279,1755431452931,-545.8,0.00020607,2]
[379884281,1755431452941,-480.0,0.00020607,2]
[379884283,1755431452951,-831.87,0.00020607,2]
[379884285,1755431452960,-480.0,0.00020607,2]
[379884287,1755431452970,-574.9841243,0.00020607,2]
[379884289,1755431452982,-826.56,0.00020607,2]
[379884291,1755431452991,-480.0,0.00020607,2]
[379884293,1755431453000,-480.0,0.00020607,2]
[379884295,1755431453010,-480.0,0.00020607,2]
[379884297,1755431453019,-599.29,0.00020607,2]
[379884299,1755431453028,-480.0,0.00020607,2]
[379884301,1755431453037,-480.0,0.00020607,2]
[379884302,1755431453047,-2876.96,0.00020607,2]
[379884305,1755431453059,-724.27,0.00020607,2]
[379884307,1755431453069,-480.0,0.00020607,2]
[379884309,1755431453078,-480.0,0.00020607,2]
[379884311,1755431453087,-480.0,0.00020607,2]
[379884313,1755431453098,-480.0,0.00020607,2]
[379884315,1755431453107,-480.0,0.00020607,2]
[379884317,1755431453116,-480.0,0.00020607,2]
[379884319,1755431453127,-616.52,0.00020607,2]
[379884321,1755431453135,-4039.42,0.00020607,2]
[379884323,1755431453146,-392.83787932,0.00020607,2]
[379884325,1755431453156,-480.0,0.00020607,2]
[379884327,1755431453165,-480.0,0.00020607,2]
[379884329,1755431453174,-824.71,0.00020607,2]
[379884331,1755431453183,-480.0,0.00020608,2]
[379884333,1755431453193,-941.24,0.00020608,2]
[379884335,1755431453202,-1500.0,0.00020668,2]
[379884337,1755431453211,-1500.0,0.00020668,2]
[379884339,1755431453220,-1254.1170082,0.00020668,2]
[379884341,1755431453229,-1500.0,0.00020668,2]
[379884343,1755431453239,-1500.0,0.00020668,2]
[379884345,1755431453248,-167.27283284,0.00020685,2]
[379884347,1755431453258,-600.0,0.0002069,2]
[379884349,1755431453267,-480.0,0.00020695,2]
[379884351,1755431453276,-940.84,0.00020695,2]
[379884353,1755431453285,-724.58,0.00020695,2]
[379884355,1755431453299,-480.0,0.00020695,2]
[379884357,1755431453309,-480.0,0.00020695,2]
[379884359,1755431453318,-6892.33,0.00020695,2]
[379884361,1755431453332,-1970.3,0.00020695,2]
[379884363,1755431453341,-860.81,0.00020695,2]
[379884365,1755431453351,-480.0,0.00020695,2]
[379884367,1755431453360,-633.39,0.00020695,2]
[379884370,1755431453370,-1707.02,0.00020695,2]
[379884372,1755431453380,-480.0,0.00020696,2]
[379884374,1755431453389,-480.0,0.00020696,2]
[379884376,1755431453398,-632.8,0.00020696,2]
[379884378,1755431453408,-480.0,0.00020696,2]
[379884380,1755431453417,-163.34523318,0.00020696,2]